bitfinex/quotes_SOLUSD_20240906
["timestamp","ask_amount","ask_price","bid_price","bid_amount"]
[1725580800885,20.0,129.76,129.68,6.3786]
[1725580802516,45.0,129.77,129.7,6.3786]
[1725580802713,45.0,129.77,129.71,15.0315]
[1725580803599,2.88175747,129.8,129.72,1.54180681]
[1725580803897,21.7113,129.84,129.72,1.54180681]
[1725580804087,21.7113,129.84,129.71,15.0315]
[1725580804295,24.45633351,129.84,129.71,15.0315]
[1725580804880,20.0,129.83,129.72,6.3786]
[1725580805206,24.45633351,129.84,129.72,6.3786]
[1725580805207,18.21663351,129.84,129.73,15.0315]
[1725580805500,18.21663351,129.84,129.74,6.3786]
[1725580806689,20.0,129.83,129.74,6.3786]
[1725580806884,20.0,129.83,129.75,15.0315]
[1725580807097,2.74503351,129.84,129.75,15.0315]
[1725580807296,20.0,129.86,129.75,15.0315]
[1725580807297,45.0,129.85,129.75,15.0315]
[1725580807498,20.0,129.84,129.75,15.0315]
[1725580807689,45.0,129.83,129.75,15.0315]
[1725580807887,20.0,129.82,129.75,15.0315]
[1725580808090,45.0,129.81,129.75,15.0315]
[1725580808409,20.0,129.8,129.75,15.0315]
[1725580808788,45.0,129.79,129.75,15.0315]
[1725580808992,20.0,129.78,129.75,15.0315]
[1725580809605,20.0,129.78,129.74,6.3786]
[1725580809806,45.0,129.77,129.74,6.3786]
[1725580810003,20.0,129.76,129.72,15.0244]
[1725580810297,45.0,129.75,129.71,6.4785]
[1725580810505,20.0,129.74,129.71,6.4785]
[1725580811206,20.0,129.74,129.69,15.0244]
[1725580811712,45.0,129.73,129.69,15.0244]
[1725580811886,20.0,129.72,129.65,6.4785]
[1725580812098,45.0,129.71,129.65,6.4785]
[1725580812405,20.0,129.7,129.65,6.4785]
[1725580812611,45.0,129.69,129.65,6.4785]
[1725580812817,20.0,129.7,129.65,6.4785]
[1725580812818,20.0,129.68,129.65,6.4785]
[1725580812988,20.0,129.7,129.65,6.4785]
[1725580813814,20.0,129.7,129.66,1.54239988]
[1725580814006,64.51776608,129.8,129.66,1.54239988]
[1725580814312,64.47234795,129.79,129.66,1.54239988]
[1725580814611,20.0,129.78,129.66,1.54239988]
[1725580814911,45.0,129.77,129.65,6.4785]
[1725580815112,20.0,129.76,129.65,6.4785]
[1725580815406,45.0,129.75,129.65,6.4785]
[1725580815609,20.0,129.74,129.65,6.4785]
[1725580815806,45.0,129.73,129.65,6.4785]
[1725580816209,20.0,129.72,129.65,8.01922468]
[1725580816419,20.0,129.72,129.66,1.54060593]
[1725580816714,45.0,129.73,129.65,6.4785]
[1725580816896,35.08598496,129.78,129.66,1.54074787]
[1725580817290,35.08598496,129.78,129.66,46.54074787]
[1725580818299,37.8401035,129.78,129.66,46.54074787]
[1725580818519,45.0,129.77,129.66,46.54074787]
[1725580818706,20.0,129.77,129.66,46.54074787]
[1725580818901,20.0,129.77,129.67,13.13838519]
[1725580820193,35.08598496,129.78,129.67,13.13838519]
[1725580820505,45.0,129.77,129.67,13.13838519]
[1725580820709,45.0,129.77,129.69,21.5029]
[1725580821016,45.0,129.77,129.7,1.54155143]
[1725580821320,45.0,129.77,129.71,1.54155014]
[1725580821726,45.0,129.77,129.69,21.5029]
[1725580822610,20.0,129.76,129.69,21.5029]
[1725580825623,20.0,129.76,129.7,1.54159141]
[1725580825825,20.0,129.76,129.69,21.5029]
[1725580830908,45.0,129.75,129.69,21.5029]
[1725580831233,20.0,129.74,129.69,21.5029]
[1725580831741,7.7086,129.73,129.69,29.2134]
[1725580831930,20.0,129.72,129.69,29.2134]
[1725580832310,20.0,129.72,129.71,7.7095]
[1725580832513,20.0,129.72,129.7,28.52654316]
[1725580832805,20.0,129.73,129.7,28.52667189]
[1725580833006,20.0,129.73,129.71,9.25106118]
[1725580833220,20.0,129.74,129.71,7.7094]
[1725580833421,7.7067,129.76,129.72,9.25028097]
[1725580834708,20.0,129.75,129.72,9.25028097]
[1725580835325,38.5193,129.81,129.71,19.2723]
[1725580835326,7.7063,129.77,129.73,7.7083]
[1725580835829,7.7065,129.76,129.72,7.7089]
[1725580836323,7.7072,129.75,129.71,26.9815]
[1725580836516,7.7072,129.75,129.72,1.54153091]
[1725580836715,20.0,129.74,129.72,1.54153091]
[1725580837240,20.0,129.74,129.72,9.25043091]
[1725580837545,20.0,129.74,129.72,7.7089]
[1725580837737,20.0,129.74,129.69,21.5029]
[1725580837934,19.2633,129.78,129.69,21.5029]
[1725580837935,20.0,129.77,129.69,21.5029]
[1725580838240,7.7083,129.73,129.69,29.2131]
[1725580838438,20.0,129.72,129.69,29.2131]
[1725580839931,27.7089,129.72,129.69,21.5029]
[1725580842844,20.0,129.72,129.69,29.2133]
[1725580843046,20.0,129.72,129.7,7.7097]
[1725580843345,20.0,129.73,129.7,7.7097]
[1725580844241,27.7084,129.73,129.7,7.7097]
[1725580846115,20.0,129.73,129.69,48.4885]
[1725580846318,7.7089,129.72,129.69,40.7781]
[1725580846525,20.0,129.71,129.69,40.7781]
[1725580847328,20.0,129.71,129.69,48.4887]
[1725580848532,20.0,129.71,129.69,40.7781]
[1725580852137,27.7099,129.71,129.69,21.5029]
[1725580854848,7.7101,129.7,129.69,21.5029]
[1725580855041,27.7101,129.7,129.69,21.5029]
[1725580855242,20.0,129.7,129.66,22.536]
[1725580855548,7.7115,129.68,129.66,22.536]
[1725580855729,20.0,129.67,129.66,22.536]
[1725580861251,20.0,129.67,129.66,30.2484]
[1725580861455,19.2661,129.77,129.67,19.2793]
[1725580861627,19.2661,129.77,129.68,1.54189825]
[1725580862738,45.0,129.76,129.68,1.54189825]
[1725580862926,20.0,129.75,129.68,1.54189825]
[1725580863132,7.7092,129.72,129.68,9.25289825]
[1725580863331,20.0,129.71,129.68,9.25289825]
[1725580866637,19.2661,129.77,129.68,1.54189825]
[1725580866840,7.7071,129.76,129.7,22.536]
[1725580867027,7.7071,129.76,129.72,26.9808]
[1725580867229,7.7071,129.76,129.73,1.54142121]
[1725580867576,7.7078,129.74,129.7,22.536]
[1725580867847,7.7072,129.75,129.71,7.7091]
[1725580868347,20.0,129.74,129.72,7.7087]
[1725580868533,20.0,129.75,129.72,7.7087]
[1725580868947,20.0,129.75,129.73,1.54139733]
[1725580869145,20.0,129.75,129.73,9.24969733]
[1725580869349,7.7055,129.78,129.74,7.7076]
[1725580870666,27.7059,129.77,129.74,7.7076]
[1725580871242,7.7066,129.76,129.73,1.54119008]
[1725580871543,7.7066,129.76,129.72,26.9792]
[1725580871544,20.0,129.75,129.72,26.9794]
[1725580871759,20.0,129.75,129.73,1.54142635]
[1725580872066,20.0,129.75,129.73,9.24972635]
[1725580872235,20.0,129.75,129.73,7.7083]
[1725580872443,20.0,129.75,129.73,9.24971794]
[1725580873267,20.0,129.76,129.73,9.24971794]
[1725580873761,20.0,129.76,129.74,1.54136311]
[1725580874661,27.7066,129.76,129.73,1.54135427]
[1725580874957,27.7066,129.76,129.73,9.24955427]
[1725580875860,7.7075,129.75,129.72,19.2708]
[1725580876044,27.708,129.74,129.7,30.2456]
[1725580876245,7.7084,129.73,129.7,22.536]
[1725580876452,20.0,129.72,129.7,22.536]
[1725580876656,27.7089,129.72,129.7,6.0411]
[1725580877138,20.0,129.72,129.7,7.58290728]
[1725580879039,20.0,129.72,129.7,6.0411]
[1725580879358,20.0,129.72,129.7,7.58286221]
[1725580879754,27.709,129.72,129.69,19.2754]
[1725580880272,27.709,129.72,129.69,20.81729158]
[1725580880767,27.709,129.72,129.69,28.52789158]
[1725580880957,20.0,129.72,129.7,1.54176257]
[1725580881157,7.7055,129.78,129.74,7.7076]
[1725580881369,7.706,129.77,129.73,7.708]
[1725580881957,35.6222,129.81,129.72,19.2718]
[1725580881958,7.707,129.76,129.72,26.9805]
[1725580882162,7.707,129.76,129.73,1.54127409]
[1725580882360,7.707,129.76,129.72,26.9805]
[1725580882361,38.43323859,129.81,129.74,1.54126119]
[1725580882669,38.43323859,129.81,129.74,9.24876119]
[1725580882670,7.7057,129.78,129.74,9.24876119]
[1725580883650,20.0,129.77,129.74,9.24876119]
[1725580883871,20.0,129.77,129.75,1.54119798]
[1725580884871,20.0,129.77,129.74,7.7075]
[1725580886281,20.0,129.77,129.75,1.54113895]
[1725580886451,20.0,129.77,129.74,7.7075]
[1725580887082,20.0,129.77,129.75,9.24814004]
[1725580887249,20.0,129.77,129.76,7.7065]
[1725580887454,20.0,129.77,129.76,26.9728]
[1725580891082,20.0,129.77,129.71,32.74853698]
[1725580891083,20.0,129.77,129.75,7.7068]
[1725580891279,27.7055,129.78,129.75,7.7068]
[1725580891456,20.0,129.78,129.72,19.272]
[1725580891756,20.0,129.81,129.72,19.272]
[1725580891956,7.7055,129.78,129.74,7.7074]
[1725580892179,20.0,129.77,129.75,1.54119063]
[1725580892571,20.0,129.77,129.74,7.7074]
[1725580893777,20.0,129.77,129.74,9.24862255]
[1725580895583,20.0,129.77,129.74,7.7074]
[1725580895787,20.0,129.77,129.75,9.24822358]
[1725580896190,7.7049,129.79,129.75,9.24822358]
[1725580896191,20.0,129.78,129.75,9.24822358]
[1725580896901,27.7054,129.78,129.75,9.24822358]
[1725580898270,20.0,129.78,129.76,7.7065]
[1725580900681,20.0,129.78,129.75,9.24783857]
[1725580901177,20.0,129.78,129.75,7.7068]
[1725580904273,27.7054,129.78,129.75,7.7068]
[1725580904490,27.7054,129.78,129.75,9.24796219]
[1725580908294,20.0,129.78,129.75,9.24796219]
[1725580909889,20.0,129.78,129.77,7.7059]
[1725580910295,20.0,129.78,129.77,9.24684282]
[1725580910774,20.0,129.78,129.77,7.7059]
[1725580911383,20.0,129.78,129.77,9.24685461]
[1725580914002,20.0,129.78,129.77,9.24684364]
[1725580914168,7.7038,129.81,129.78,7.7053]
[1725580914372,20.0,129.8,129.78,7.7053]
[1725580918284,20.0,129.81,129.78,7.7053]
[1725580918688,27.7036,129.81,129.78,7.7053]
[1725580918997,27.7036,129.81,129.77,26.9691]
[1725580920102,27.7036,129.81,129.75,22.0923]
[1725580920103,7.7051,129.79,129.75,29.799]
[1725580920304,20.0,129.81,129.76,7.7064]
[1725580920305,20.0,129.78,129.76,7.7064]
[1725580921200,20.0,129.79,129.76,7.7064]
[1725580922103,27.705,129.79,129.75,29.7989]
[1725580922282,7.7065,129.77,129.73,7.708]
[1725580922481,20.0,129.76,129.73,7.708]
[1725580923307,20.0,129.76,129.75,7.7071]
[1725580923513,7.7049,129.79,129.75,7.7071]
[1725580923799,7.7049,129.79,129.76,1.54103349]
[1725580923800,20.0,129.78,129.76,1.54103349]
[1725580927585,20.0,129.78,129.75,7.7071]
[1725580929284,20.0,129.78,129.76,1.54105797]
[1725580930383,20.0,129.78,129.76,7.7064]
[1725580930579,20.0,129.79,129.77,1.54101083]
[1725580931687,20.0,129.79,129.77,7.7058]
[1725580931888,20.0,129.8,129.77,7.7058]
[1725580933212,27.7044,129.8,129.76,26.9718]
[1725580933507,27.7044,129.8,129.77,7.7057]
[1725580933711,27.7044,129.8,129.76,26.972]
[1725580935316,27.7044,129.8,129.77,1.54095437]
[1725580936518,27.7044,129.8,129.77,9.2467494]
[1725580936694,27.7044,129.8,129.77,7.7058]
[1725580939316,20.0,129.8,129.78,28.50913465]
[1725580939687,20.0,129.81,129.78,26.9683]
[1725580947028,6.0945,129.9,129.8,19.2604]
[1725580947337,0.8499274,129.93,129.81,67.161]
[1725580947495,7.6995,129.88,129.84,26.955]
[1725580948318,7.6989,129.89,129.85,7.701]
[1725580948516,0.8499274,129.93,129.81,67.161]
[1725580948517,0.8499274,129.93,129.87,7.6994]
[1725580948830,0.8499274,129.93,129.88,7.6993]
[1725580949298,8.5465274,129.93,129.89,9.23836813]
[1725580949498,8.5465274,129.93,129.89,7.6988]
[1725580949718,8.5465274,129.93,129.88,7.6992]
[1725580950133,20.0,129.92,129.88,7.6992]
[1725580950896,27.6971,129.92,129.88,7.6992]
[1725580952104,27.6971,129.92,129.87,7.6997]
[1725580952304,7.6977,129.91,129.87,7.6997]
[1725580952531,20.0,129.9,129.88,1.5396206]
[1725580952713,20.0,129.9,129.88,7.6993]
[1725580953235,20.0,129.91,129.88,7.6993]
[1725580953731,27.6978,129.91,129.86,41.4114]
[1725580953928,20.0,129.91,129.86,19.2504]
[1725580954107,0.8499274,129.93,129.86,19.2504]
[1725580954108,7.6989,129.89,129.86,19.2504]
[1725580954304,20.0,129.88,129.86,19.2504]
[1725580954534,20.0,129.88,129.86,20.79028119]
[1725580955109,20.0,129.89,129.86,20.79028119]
[1725580956033,20.0,129.89,129.86,1.53988119]
[1725580956034,27.6988,129.89,129.86,1.53988119]
[1725580956621,27.6988,129.89,129.85,7.7007]
[1725580956910,27.6988,129.89,129.86,1.53992302]
[1725580958331,20.0,129.89,129.86,7.7001]
[1725580960023,20.0,129.89,129.86,9.23992864]
[1725580960553,20.0,129.89,129.88,7.6994]
[1725580960841,0.8499274,129.93,129.89,7.6987]
[1725580960842,8.5467274,129.93,129.89,7.6987]
[1725580961022,0.8499274,129.93,129.88,6.2521]
[1725580961538,0.8499274,129.93,129.87,34.9929]
[1725580962049,20.0912274,129.93,129.87,15.7432]
[1725580962246,20.0,129.92,129.87,15.7432]
[1725580962547,7.698,129.91,129.87,23.4427]
[1725580962847,20.0,129.9,129.87,15.7432]
[1725580963024,27.6982,129.9,129.87,15.7432]
[1725580963824,27.6982,129.9,129.87,17.28289058]
[1725580964030,20.0,129.9,129.87,23.4428]
[1725580964236,7.6982,129.9,129.87,15.7432]
[1725580964530,20.0,129.89,129.87,15.7432]
[1725580965157,27.6992,129.89,129.86,7.7005]
[1725580965333,20.0,129.89,129.86,9.24030871]
[1725580965541,20.0,129.89,129.86,7.7005]
[1725580966049,20.0,129.89,129.87,19.2496]
[1725580966238,20.0,129.9,129.87,19.2496]
[1725580966625,20.0,129.9,129.87,26.9494]
[1725580967023,27.6982,129.9,129.87,26.9494]
[1725580968045,27.6982,129.9,129.87,19.2496]
[1725580968241,27.6982,129.9,129.87,20.78933912]
[1725580969064,20.0,129.9,129.87,28.48923912]
[1725580972360,0.8499274,129.93,129.87,67.34034633]
[1725580972531,0.8499274,129.93,129.9,7.698]
[1725580972735,0.8499274,129.93,129.9,9.23732704]
[1725580973768,8.5465274,129.93,129.9,9.23742704]
[1725580973935,8.5465274,129.93,129.9,7.6981]
[1725580974138,20.0,129.92,129.89,28.48374615]
[1725580974435,20.0,129.92,129.9,1.539454]
[1725580974644,0.8499274,129.93,129.9,9.237454]
[1725580974849,0.8499274,129.93,129.9,7.698]
[1725580975139,0.8499274,129.93,129.9,9.23740795]
[1725580975334,0.8499274,129.93,129.9,15.42060795]
[1725580975553,20.8499274,129.93,129.9,15.42060795]
[1725580976650,0.8499274,129.93,129.92,7.697]
[1725580976857,0.8499274,129.93,129.92,9.23598225]
[1725580977050,0.8499274,129.93,129.92,24.45068225]
[1725580978555,0.8499274,129.93,129.92,22.9117]
[1725580981461,0.8499274,129.93,129.92,24.45062517]
[1725580982042,0.8499274,129.93,129.92,22.9117]
[1725580984569,0.8499274,129.93,129.92,24.45082893]
[1725580987060,0.8499274,129.93,129.92,1.53912893]
[1725580987340,0.8499274,129.93,129.9,13.8811]
[1725580987682,28.5467274,129.93,129.89,26.9453]
[1725580987876,7.6971,129.92,129.89,19.2468]
[1725580988045,8.5466274,129.93,129.89,7.6986]
[1725580988247,20.0,129.92,129.9,1.5394104]
[1725580988649,20.0,129.92,129.89,7.6986]
[1725580988969,20.0,129.92,129.9,1.53941356]
[1725580990262,20.0,129.92,129.9,26.9429]
[1725580990471,20.8499274,129.93,129.9,26.9429]
[1725580992046,28.5464274,129.93,129.9,19.2453]
[1725580992350,20.8499274,129.93,129.88,19.2484]
[1725580992552,7.698,129.91,129.88,19.2484]
[1725580992754,20.0,129.9,129.88,19.2484]
[1725580993060,20.0,129.9,129.88,28.48730432]
[1725580993462,20.0,129.91,129.88,28.48730432]
[1725580993777,20.0,129.91,129.89,7.6988]
[1725580993971,20.0,129.91,129.9,1.53947442]
[1725580996077,20.0,129.91,129.89,7.6988]
[1725580996280,20.0,129.92,129.89,7.6988]
[1725580997275,20.0,129.92,129.91,7.6976]
[1725580997574,20.0,129.92,129.9,26.9422]
[1725580997779,20.8499274,129.93,129.91,7.6975]
[1725581000477,20.8499274,129.93,129.9,26.9424]
[1725581000670,20.8499274,129.93,129.91,1.53930383]
[1725581001274,20.8499274,129.93,129.91,9.23690383]
[1725581002250,20.8499274,129.93,129.91,1.53930383]
[1725581002758,20.8499274,129.93,129.91,9.23680383]
[1725581002962,0.8499274,129.93,129.92,26.9396]
[1725581005567,0.8499274,129.93,129.92,19.2426]
[1725581007368,0.8499274,129.93,129.92,26.9396]
[1725581007581,7.6992,129.89,129.85,23.0856]
[1725581007780,7.6984,129.9,129.86,7.7005]
[1725581007995,7.6984,129.9,129.78,21.6941]
[1725581007996,20.0,129.89,129.78,21.6941]
[1725581008197,7.702,129.84,129.79,36.6179608]
[1725581008476,7.702,129.84,129.79,26.9654]
[1725581008678,20.0,129.83,129.79,26.9654]
[1725581008863,20.0,129.83,129.79,19.2608]
[1725581009069,7.7024,129.83,129.79,19.2608]
[1725581009264,20.0,129.82,129.79,19.2608]
[1725581010198,20.0,129.82,129.73,6.3092]
[1725581010388,45.0,129.81,129.69,21.6941]
[1725581010688,20.0,129.8,129.73,19.2707]
[1725581010875,45.0,129.79,129.73,19.2707]
[1725581011058,20.0,129.78,129.73,19.2707]
[1725581011777,7.7059,129.77,129.73,19.2707]
[1725581011982,20.0,129.76,129.73,26.9789]
[1725581012177,27.7054,129.78,129.73,26.9789]
[1725581012478,20.0,129.78,129.69,21.6941]
[1725581013294,7.706,129.77,129.72,7.7087]
[1725581013596,20.0,129.76,129.72,7.7087]
[1725581014279,20.0,129.76,129.73,7.7082]
[1725581014479,27.7054,129.78,129.73,7.7082]
[1725581015879,20.0,129.78,129.74,7.7072]
[1725581016078,20.0,129.79,129.73,19.2701]
[1725581016289,20.0,129.82,129.73,19.2701]
[1725581016490,45.0,129.81,129.73,19.2701]
[1725581018175,6.5708,129.83,129.75,19.267]
[1725581018791,7.7042,129.8,129.76,7.7061]
[1725581019083,20.0,129.79,129.76,7.7061]
[1725581019283,27.7048,129.79,129.75,26.9739]
[1725581019497,27.7048,129.79,129.75,19.267]
[1725581020074,27.7048,129.79,129.75,26.974]
[1725581020387,7.7053,129.78,129.75,19.267]
[1725581020582,20.0,129.77,129.73,7.7081]
[1725581020888,27.7061,129.77,129.73,7.7081]
[1725581021199,20.0,129.77,129.73,7.7081]
[1725581021490,20.0,129.77,129.74,7.7077]
[1725581022887,27.7059,129.77,129.73,7.7081]
[1725581023798,27.7059,129.77,129.72,19.2713]
[1725581023799,20.0,129.77,129.74,9.24898338]
[1725581023998,20.0,129.77,129.74,7.7075]
[1725581024500,20.0,129.77,129.74,26.9767]
[1725581025372,20.0,129.77,129.75,7.707]
[1725581025594,20.0,129.78,129.75,7.707]
[1725581027499,20.0,129.78,129.76,7.7064]
[1725581027724,27.7048,129.79,129.75,7.7068]
[1725581028405,20.0,129.79,129.76,26.9721]
[1725581029098,7.7015,129.85,129.81,7.7035]
[1725581029306,7.7018,129.84,129.81,7.7035]
[1725581029511,7.7018,129.84,129.81,7.7034]
[1725581029707,7.7018,129.84,129.8,26.964]
[1725581030006,23.0484,129.86,129.82,26.9597]
[1725581030298,7.7008,129.86,129.82,26.9602]
[1725581030893,7.7012,129.85,129.82,19.2573]
[1725581031284,7.7012,129.85,129.82,26.9601]
[1725581031485,7.7004,129.87,129.83,7.7023]
[1725581031684,7.7006,129.86,129.82,19.2573]
[1725581031885,15.0671,129.89,129.82,19.2573]
[1725581032581,7.7004,129.87,129.83,7.7023]
[1725581032982,20.0,129.86,129.83,7.7023]
[1725581035804,20.0,129.86,129.82,19.2573]
[1725581035805,7.7012,129.85,129.82,19.2573]
[1725581036013,20.0,129.84,129.82,26.9602]
[1725581036717,20.0,129.85,129.82,26.9602]
[1725581040111,7.7018,129.84,129.79,19.2606]
[1725581040308,20.0,129.83,129.79,19.2606]
[1725581040511,27.7015,129.85,129.81,7.7032]
[1725581041399,27.7015,129.85,129.79,19.2606]
[1725581041400,20.0,129.85,129.82,7.7029]
[1725581041608,7.1659274,129.93,129.86,19.2514]
[1725581041916,7.6985,129.9,129.86,26.9518]
[1725581042116,7.6977,129.91,129.87,7.6996]
[1725581042295,8.5464274,129.93,129.89,7.6985]
[1725581042926,8.5464274,129.93,129.85,38.5042]
[1725581042927,0.8499274,129.93,129.85,38.5042]
[1725581043096,0.8499274,129.93,129.91,7.6972]
[1725581043416,0.8499274,129.93,129.91,9.23649867]
[1725581043597,0.8499274,129.93,129.91,7.6972]
[1725581043795,0.8499274,129.93,129.9,26.9432]
[1725581044503,20.8499274,129.93,129.9,26.9432]
[1725581044813,0.8499274,129.93,129.9,26.9432]
[1725581045021,20.8499274,129.93,129.9,26.9432]
[1725581045718,20.8499274,129.93,129.87,19.249]
[1725581045897,0.8499274,129.93,129.89,19.2463]
[1725581046098,8.5468274,129.93,129.89,26.945]
[1725581046304,20.0,129.92,129.89,26.945]
[1725581051411,7.6988,129.89,129.83,15.8182]
[1725581051714,20.0,129.88,129.84,7.7014]
[1725581052101,20.0,129.91,129.85,7.7011]
[1725581052329,52.6985,129.9,129.85,7.7011]
[1725581052503,20.0,129.89,129.86,7.7005]
[1725581054006,20.0,129.89,129.88,7.6994]
[1725581059002,0.8499274,129.93,129.88,7.6994]
[1725581059003,0.8499274,129.93,129.9,7.6978]
[1725581059203,0.8499274,129.93,129.91,7.6975]
[1725581059616,0.8499274,129.93,129.92,7.697]
[1725581059820,0.8499274,129.93,129.92,9.23623486]
[1725581060609,0.8499274,129.93,129.92,7.697]
[1725581066811,0.8499274,129.93,129.91,26.9411]
[1725581067629,0.8499274,129.93,129.91,19.2438]
[1725581068817,0.8499274,129.93,129.89,15.8182]
[1725581068818,8.5469274,129.93,129.88,25.2884]
[1725581069018,20.0,129.92,129.89,7.6987]
[1725581069910,27.6974,129.92,129.88,28.48640935]
[1725581070338,27.6974,129.92,129.89,7.6987]
[1725581072435,20.0,129.92,129.89,9.23832321]
[1725581072615,20.0,129.92,129.89,7.6987]
[1725581074935,27.6972,129.92,129.88,19.2475]
[1725581076418,27.6972,129.92,129.89,7.6988]
[1725581076620,27.6972,129.92,129.88,26.9466]
[1725581077755,7.6977,129.91,129.88,19.2475]
[1725581077912,20.0,129.9,129.88,19.2475]
[1725581078313,20.0,129.9,129.88,26.9467]
[1725581079042,20.0,129.91,129.88,26.9467]
[1725581079523,20.0,129.91,129.89,7.6986]
[1725581079720,20.0,129.92,129.86,15.9424]
[1725581080043,7.6981,129.91,129.87,7.6996]
[1725581080249,20.0,129.9,129.88,26.9478]
[1725581081248,20.0,129.91,129.88,26.9476]
[1725581082533,20.0,129.91,129.89,7.6983]
[1725581082728,27.697,129.92,129.89,7.6983]
[1725581085226,20.0,129.92,129.86,15.9424]
[1725581085443,7.6978,129.91,129.86,15.9424]
[1725581085642,20.0,129.9,129.86,15.9424]
[1725581085832,20.0,129.9,129.88,7.6991]
[1725581086245,20.0,129.91,129.88,7.6991]
[1725581093845,20.0,129.91,129.89,26.9451]
[1725581094052,20.0,129.92,129.89,26.9451]
[1725581096132,27.697,129.92,129.89,26.9451]
[1725581097153,20.0,129.92,129.91,26.9416]
[1725581097543,20.0,129.92,129.91,19.244]
[1725581098358,20.0,129.92,129.91,26.9416]
[1725581099549,20.0,129.92,129.91,19.244]
[1725581100941,20.0,129.92,129.9,7.698]
[1725581100942,27.6974,129.92,129.89,19.2469]
[1725581101767,27.6974,129.92,129.88,7.699]
[1725581102061,7.6976,129.91,129.88,7.699]
[1725581102266,20.0,129.9,129.88,7.699]
[1725581102575,27.6973,129.92,129.88,7.699]
[1725581104662,7.6992,129.89,129.86,15.9424]
[1725581104963,7.6995,129.88,129.85,19.2529]
[1725581105285,65.0,129.87,129.82,19.256]
[1725581105456,65.0,129.87,129.77,51.59947187]
[1725581105457,7.7012,129.85,129.81,7.7033]
[1725581105659,27.7019,129.84,129.8,7.7038]
[1725581105867,7.7019,129.84,129.8,7.7038]
[1725581106047,20.0,129.83,129.81,7.7034]
[1725581106755,20.0,129.84,129.81,7.7034]
[1725581107867,20.0,129.84,129.82,7.7024]
[1725581108063,20.0,129.85,129.82,7.7024]
[1725581108371,27.7012,129.85,129.82,7.7024]
[1725581108676,27.7012,129.85,129.81,26.9616]
[1725581110972,20.0,129.85,129.81,19.2583]
[1725581111155,7.7007,129.86,129.82,7.7025]
[1725581111469,20.0,129.85,129.82,7.7025]
[1725581114674,20.0,129.85,129.84,7.7017]
[1725581117756,20.0,129.85,129.84,9.2419116]
[1725581118251,7.0933274,129.93,129.83,42.1728]
[1725581118252,0.8499274,129.93,129.88,7.6992]
[1725581119283,7.6976,129.91,129.88,7.6992]
[1725581119657,20.0,129.9,129.88,7.6992]
[1725581120776,20.0,129.9,129.88,26.9474]
[1725581120968,20.0,129.9,129.89,7.6988]
[1725581122474,8.5464274,129.93,129.89,7.6988]
[1725581123488,8.5464274,129.93,129.88,19.2482]
[1725581123489,7.6971,129.92,129.88,26.9474]
[1725581123776,20.0,129.91,129.88,26.9474]
[1725581124665,20.0,129.91,129.89,7.6987]
[1725581124979,8.5466274,129.93,129.89,7.6987]
[1725581125757,0.8499274,129.93,129.9,7.6981]
[1725581126452,0.8499274,129.93,129.88,26.9473]
[1725581126453,7.6975,129.92,129.88,26.9473]
[1725581126655,8.5465274,129.93,129.89,7.6988]
[1725581126879,0.8499274,129.93,129.9,7.6981]
[1725581127565,0.8499274,129.93,129.91,7.6975]
[1725581129289,0.8499274,129.93,129.9,26.9433]